bitfinex-derivatives/quotes_BTCF0:USTF0_20250810
["timestamp","ask_amount","ask_price","bid_price","bid_amount"]
[1754867034713,0.45952715,119280.0,119270.0,1.6364174]
[1754867034916,0.23370514,119280.0,119270.0,1.6364174]
[1754867035106,0.45252715,119280.0,119270.0,1.6364174]
[1754867036915,0.44428325,119280.0,119270.0,1.6364174]
[1754867041708,0.44428325,119280.0,119270.0,1.6284174]
[1754867043007,0.44428325,119280.0,119270.0,0.8403574]
[1754867043204,0.66710526,119280.0,119270.0,1.6107574]
[1754867043611,0.66710526,119280.0,119270.0,1.52693]
[1754867043907,0.66710526,119280.0,119270.0,1.6107574]
[1754867044210,0.66710526,119280.0,119270.0,0.78174]
[1754867046115,0.67110526,119280.0,119270.0,0.78174]
[1754867046315,0.67510526,119280.0,119270.0,0.78174]
[1754867046819,0.67110526,119280.0,119270.0,0.78174]
[1754867047016,0.67410526,119280.0,119270.0,0.78174]
[1754867047213,0.84178526,119280.0,119270.0,0.78174]
[1754867047523,0.86091473,119280.0,119270.0,0.78174]
[1754867048614,0.69323473,119280.0,119270.0,0.78174]
[1754867049814,0.67410526,119280.0,119270.0,0.78174]
[1754867051019,0.67400526,119280.0,119270.0,0.77374]
[1754867052313,0.69312908,119280.0,119270.0,0.77374]
[1754867052514,0.69322908,119280.0,119270.0,0.77384]
[1754867056527,0.69322908,119280.0,119270.0,0.78378]
[1754867057223,0.69322908,119280.0,119270.0,0.79314]
[1754867057422,0.69322908,119280.0,119270.0,0.8029]
[1754867058123,0.69322908,119280.0,119270.0,0.7949]
[1754867058422,0.24758506,119280.0,119270.0,0.7949]
[1754867058622,0.37514707,119280.0,119270.0,1.2456274]
[1754867058927,0.39082707,119280.0,119270.0,1.2456274]
[1754867059227,0.67300526,119280.0,119270.0,0.8787274]
[1754867059417,0.69212669,119280.0,119270.0,0.8787274]
[1754867059924,0.68812669,119280.0,119270.0,0.8848274]
[1754867060222,0.66900526,119280.0,119270.0,0.8848274]
[1754867060420,0.67100526,119280.0,119270.0,0.8848274]
[1754867060925,0.67300526,119280.0,119270.0,0.8848274]
[1754867063828,0.66700526,119280.0,119270.0,0.8848274]
[1754867064128,0.66900526,119280.0,119270.0,0.8848274]
[1754867065027,0.46530757,119280.0,119270.0,1.2456274]
[1754867065228,0.46530757,119280.0,119270.0,1.2376274]
[1754867065427,0.46330757,119280.0,119270.0,1.2376274]
[1754867066420,0.36914757,119280.0,119270.0,1.2376274]
[1754867066620,0.12302556,119280.0,119270.0,1.2376274]
[1754867066823,0.32672325,119280.0,119270.0,1.2376274]
[1754867067328,0.34970325,119280.0,119270.0,1.2376274]
[1754867067825,0.34870325,119280.0,119270.0,1.2376274]
[1754867068023,0.12588124,119280.0,119270.0,1.2376274]
[1754867068216,0.42787325,119280.0,119270.0,1.2376274]
[1754867068416,0.42787325,119280.0,119270.0,1.2406274]
[1754867068417,0.44286325,119280.0,119270.0,1.2406274]
[1754867068928,0.44286325,119280.0,119270.0,1.2426274]
[1754867069329,0.44286325,119280.0,119270.0,1.2406274]
[1754867069530,0.44286325,119280.0,119270.0,1.2376274]
[1754867070324,0.22004124,119280.0,119270.0,1.2376274]
[1754867070524,0.42787325,119280.0,119270.0,1.2376274]
[1754867070924,0.20505124,119280.0,119270.0,1.2376274]
[1754867071120,0.42787325,119280.0,119270.0,1.2376274]
[1754867072035,0.44286325,119280.0,119270.0,1.2376274]
[1754867072230,0.46201122,119280.0,119270.0,1.2296274]
[1754867072431,0.18267921,119280.0,119270.0,1.2296274]
[1754867072631,0.36785122,119280.0,119270.0,1.2296274]
[1754867074831,0.46201122,119280.0,119270.0,1.2296274]
[1754867078339,0.32168092,119280.0,119270.0,1.2296274]
[1754867078538,0.28403092,119280.0,119270.0,1.2296274]
[1754867079051,0.36785122,119280.0,119270.0,1.2296274]
[1754867079436,0.39986122,119280.0,119270.0,1.2296274]
[1754867079736,0.41549122,119280.0,119270.0,1.2296274]
[1754867079944,0.43776122,119280.0,119270.0,1.2296274]
[1754867080241,0.41861325,119280.0,119270.0,1.2326274]
[1754867081142,0.44203325,119280.0,119270.0,1.2326274]
[1754867081745,0.44203325,119280.0,119270.0,1.2346274]
[1754867082339,0.44203325,119280.0,119270.0,1.2336274]
[1754867082539,0.44203325,119280.0,119270.0,1.2306274]
[1754867083838,0.42835325,119280.0,119270.0,1.2306274]
[1754867084039,0.42835325,119280.0,119270.0,1.2296274]
[1754867084938,0.44203325,119280.0,119270.0,1.2296274]
[1754867087047,0.44203325,119280.0,119270.0,1.2216274]
[1754867088145,0.46118923,119280.0,119270.0,1.2216274]
[1754867088649,0.44203325,119280.0,119270.0,1.2216274]
[1754867089752,0.42835325,119280.0,119270.0,1.2216274]
[1754867089953,0.34870325,119280.0,119270.0,1.2216274]
[1754867090252,0.42835325,119280.0,119270.0,1.2216274]
[1754867090447,0.44203325,119280.0,119270.0,1.2216274]
[1754867091053,0.44203325,119280.0,119270.0,1.2236274]
[1754867092349,0.26488295,119280.0,119270.0,1.2175274]
[1754867092549,0.01908094,119280.0,119270.0,1.44644941]
[1754867092854,0.01908094,119280.0,119270.0,1.2236274]
[1754867094646,0.01908094,119280.0,119270.0,1.2266274]
[1754867096159,0.0001,119280.0,119270.0,1.3943074]
[1754867096456,0.0001,119280.0,119270.0,1.41149514]
[1754867097252,0.02331,119280.0,119270.0,1.41149514]
[1754867097453,0.22292201,119280.0,119270.0,1.41149514]
[1754867097655,0.02331,119280.0,119270.0,1.41149514]
[1754867098555,0.1071301,119280.0,119270.0,1.41149514]
[1754867098754,0.1071301,119280.0,119270.0,1.24381514]
[1754867099057,0.32995211,119280.0,119270.0,1.24381514]
[1754867099445,0.24613201,119280.0,119270.0,1.24381514]
[1754867099959,0.24613201,119280.0,119270.0,1.2438407]
[1754867100859,0.32995221,119280.0,119270.0,1.2438407]
[1754867101061,0.1071302,119280.0,119270.0,1.2438407]
[1754867101253,0.02331,119280.0,119270.0,1.2438407]
[1754867101453,0.24613201,119280.0,119270.0,1.2438407]
[1754867102254,0.02331,119280.0,119270.0,1.2438407]
[1754867102454,0.02331,119280.0,119270.0,1.2830207]
[1754867103465,0.02331,119280.0,119270.0,1.2829807]
[1754867104363,0.03894,119280.0,119270.0,1.2829807]
[1754867104564,0.29377201,119280.0,119270.0,1.2829807]
[1754867106552,0.34047201,119280.0,119270.0,1.2829807]
[1754867106959,0.42429211,119280.0,119270.0,1.2657674]
[1754867107661,0.42429211,119280.0,119270.0,1.2596674]
[1754867108461,0.66563766,119280.0,119270.0,0.4497274]
[1754867108659,0.66563766,119280.0,119270.0,1.2305272]
[1754867108956,0.68477266,119280.0,119270.0,1.2305272]
[1754867109363,0.68477266,119280.0,119270.0,0.8697272]
[1754867110071,0.68477266,119280.0,119270.0,0.8667272]
[1754867110072,0.23912864,119280.0,119270.0,0.8667272]
[1754867110267,0.66963766,119280.0,119270.0,0.8667272]
[1754867110469,0.65111412,119280.0,119270.0,0.8667272]
[1754867110669,0.66988181,119280.0,119270.0,0.8647272]
[1754867110862,0.67288181,119280.0,119270.0,0.8647272]
[1754867111169,0.6920182,119280.0,119270.0,0.8647272]
[1754867111555,0.6920182,119280.0,119270.0,0.7809]
[1754867111959,0.6920182,119280.0,119270.0,0.0001]
[1754867112159,0.6920182,119280.0,119270.0,0.7809]
[1754867113365,0.67288181,119280.0,119270.0,0.7809]
[1754867113965,0.84056181,119280.0,119270.0,0.0001]
[1754867114668,0.67288181,119280.0,119270.0,0.0001]
[1754867115364,0.67288181,119280.0,119260.0,1.3931014]
[1754867115365,0.2025272,119270.0,119260.0,1.3951414]
[1754867115567,0.42534921,119270.0,119260.0,0.3529]
[1754867115872,0.42534921,119270.0,119260.0,1.2175742]
[1754867116169,0.78614921,119270.0,119260.0,0.78084]
[1754867116366,0.78614921,119270.0,119260.0,0.8646742]
[1754867116571,0.78624921,119270.0,119260.0,0.78094]
[1754867117266,0.78624921,119270.0,119240.0,0.2614804]
[1754867117267,0.1314944,119260.0,119240.0,0.2614804]
[1754867117569,0.8148576,119260.0,119250.0,0.8646806]
[1754867117767,0.8148576,119260.0,119250.0,0.0937806]
[1754867117969,0.8148576,119260.0,119250.0,0.8939006]
[1754867118568,1.03767961,119260.0,119250.0,0.8939006]
[1754867118871,1.03777961,119260.0,119250.0,0.8940006]
[1754867119075,1.03777961,119260.0,119250.0,0.0001]
[1754867119372,1.03777961,119260.0,119250.0,0.78098]
[1754867120267,1.05622226,119260.0,119250.0,0.78098]
[1754867121069,1.05622226,119260.0,119250.0,0.0001]
[1754867121272,1.05622226,119260.0,119250.0,0.78094]
[1754867121574,1.05622226,119260.0,119250.0,0.78098]
[1754867122173,1.05622226,119260.0,119250.0,0.0001]
[1754867127184,1.27904427,119260.0,119250.0,0.0001]
[1754867127385,1.27904427,119260.0,119220.0,0.3669]
[1754867127386,0.1555455,119230.0,119220.0,0.5577402]
[1754867127577,0.42537751,119230.0,119220.0,0.4738785]
[1754867127782,0.78617751,119230.0,119220.0,0.8647785]
[1754867128385,0.78617751,119230.0,119220.0,0.8842385]
[1754867128587,0.79459289,119230.0,119220.0,0.8940985]
[1754867128886,0.79459289,119230.0,119220.0,0.9000985]
[1754867129383,0.86208583,119230.0,119220.0,0.9000985]
[1754867129787,0.86208583,119230.0,119220.0,0.9040985]
[1754867135186,0.86208583,119230.0,119220.0,0.82024]
[1754867136086,0.86208583,119230.0,119220.0,0.80054]
[1754867136593,0.86208583,119230.0,119220.0,0.81048]
[1754867136994,0.86208583,119230.0,119220.0,0.82024]
[1754867138297,0.86208583,119230.0,119220.0,0.80054]
[1754867138595,0.86208583,119230.0,119220.0,0.82024]
[1754867141596,0.86208583,119230.0,119200.0,0.1072585]
[1754867141597,0.2039995,119210.0,119200.0,0.5753321]
[1754867141793,0.42682151,119210.0,119200.0,0.9955721]
[1754867141995,0.42682151,119210.0,119200.0,0.9116956]
[1754867142384,0.78762151,119210.0,119200.0,0.827822]
[1754867142591,0.78762151,119210.0,119200.0,0.9116986]
[1754867142793,1.01054352,119210.0,119200.0,0.02566]
[1754867142992,0.3717721,119200.0,119190.0,0.0295]
[1754867143297,1.17821612,119200.0,119190.0,0.0295]
[1754867143490,1.17821612,119200.0,119190.0,0.47344]
[1754867143491,1.19732385,119200.0,119190.0,0.47344]
[1754867143799,0.2040136,119190.0,119180.0,0.8650304]
[1754867144297,0.22278838,119190.0,119180.0,0.8650304]
[1754867144500,0.22288838,119190.0,119180.0,0.8651304]
[1754867144887,0.44571039,119190.0,119180.0,0.8651304]
[1754867145592,0.32558039,119190.0,119180.0,0.8651304]
[1754867145798,0.34829039,119190.0,119180.0,0.8651304]
[1754867146092,0.34829039,119190.0,119180.0,0.8691304]
[1754867146685,0.34829039,119190.0,119180.0,0.8651304]
[1754867146891,0.35029039,119190.0,119180.0,0.8671304]
[1754867147093,0.40950039,119190.0,119180.0,0.8671304]
[1754867147898,0.44771039,119190.0,119180.0,0.8671304]
[1754867148603,0.22488838,119190.0,119180.0,0.8671304]
[1754867148792,0.44771039,119190.0,119180.0,0.8671304]
[1754867151995,0.44971039,119190.0,119180.0,0.8651304]
[1754867152403,0.44771039,119190.0,119180.0,0.8651304]
[1754867152602,0.44971039,119190.0,119180.0,0.8651304]
[1754867152995,0.13892838,119190.0,119180.0,0.8651304]
[1754867153204,0.04558478,119190.0,119180.0,0.8651304]
[1754867153511,0.04558478,119190.0,119180.0,1.44875241]
[1754867153512,0.02287478,119190.0,119180.0,1.44875241]
[1754867153798,0.02287478,119190.0,119180.0,1.2259304]
[1754867155503,0.10675838,119190.0,119180.0,1.2259304]
[1754867156402,0.02287478,119190.0,119180.0,1.2259304]
[1754867157195,0.02287478,119190.0,119180.0,1.91656041]
[1754867158000,0.02087478,119190.0,119180.0,1.91756041]
[1754867158199,0.01887478,119190.0,119180.0,1.6967384]
[1754867158999,0.32558039,119190.0,119180.0,0.6156984]
[1754867159303,0.44571039,119190.0,119180.0,1.2290104]
[1754867160003,0.41093039,119190.0,119180.0,1.2290104]
[1754867160202,0.34829039,119190.0,119180.0,1.2290104]
[1754867160499,0.02281,119190.0,119180.0,1.2290104]
[1754867160703,0.0001,119190.0,119180.0,1.93657569]
[1754867160905,0.0001,119190.0,119180.0,1.93557569]
[1754867162100,0.0001,119190.0,119180.0,1.71375368]
[1754867162303,0.0001,119190.0,119180.0,1.93657569]
[1754867165006,0.0001,119190.0,119180.0,1.93457569]
[1754867165207,0.0011,119190.0,119180.0,1.93457569]
[1754867165908,0.0001,119190.0,119180.0,1.93457569]
[1754867166110,0.0001,119190.0,119180.0,1.93557569]
[1754867166505,0.0001,119190.0,119180.0,1.71275368]
[1754867166705,0.0001,119190.0,119180.0,1.93557569]
[1754867166906,0.0001,119190.0,119180.0,1.71275368]
[1754867167210,0.0001,119190.0,119180.0,1.93557569]
[1754867167902,0.0001,119190.0,119180.0,1.71275368]
[1754867168099,0.0001,119190.0,119180.0,1.93557569]
[1754867168303,0.02362,119190.0,119180.0,1.93557569]
[1754867168911,0.0001,119190.0,119180.0,1.93557569]
[1754867169610,0.0001,119190.0,119180.0,1.63557569]
[1754867171209,0.02362,119190.0,119180.0,1.63557569]
[1754867179413,0.02362,119190.0,119180.0,1.41275368]
[1754867179612,0.02362,119190.0,119180.0,1.63557569]
[1754867180719,0.02362,119190.0,119180.0,1.46776769]
[1754867181020,0.02362,119190.0,119180.0,1.5433084]
[1754867181420,0.02362,119190.0,119180.0,1.46776769]
[1754867181720,0.0001,119190.0,119180.0,1.46776769]
[1754867182220,0.02362,119190.0,119180.0,1.46776769]
[1754867184126,0.07193,119190.0,119180.0,0.46382568]
[1754867184310,0.34250201,119190.0,119180.0,1.24474568]
[1754867184618,0.42638561,119190.0,119180.0,1.24474568]
[1754867185421,0.42638561,119190.0,119180.0,0.46382568]
[1754867185622,0.42738561,119190.0,119180.0,1.24370568]
[1754867186422,0.42738561,119190.0,119180.0,1.24270568]
[1754867187826,0.34350201,119190.0,119180.0,1.24270568]
[1754867188030,0.42738561,119190.0,119180.0,1.24270568]
[1754867188324,0.34350201,119190.0,119180.0,1.24270568]
[1754867188619,0.07293,119190.0,119180.0,1.24270568]
[1754867188826,0.0011,119190.0,119180.0,1.46552769]
[1754867189120,0.0011,119190.0,119180.0,1.5410684]
[1754867189330,0.0011,119190.0,119180.0,1.24270568]
[1754867189515,0.02462,119190.0,119180.0,1.57175418]
[1754867190026,0.02462,119190.0,119180.0,1.57275418]
[1754867190714,0.02462,119190.0,119180.0,1.57375418]
[1754867190917,0.02462,119190.0,119180.0,2.73407418]
[1754867191926,0.02362,119190.0,119180.0,2.73607418]
[1754867192423,0.02362,119190.0,119180.0,2.51325217]
[1754867192629,0.02362,119190.0,119180.0,2.73607418]
[1754867193424,0.02362,119190.0,119180.0,2.62984769]
[1754867194028,0.02362,119190.0,119180.0,2.73607418]
[1754867194230,0.02362,119190.0,119180.0,2.62984769]
[1754867196433,0.02362,119190.0,119180.0,2.40702568]
[1754867199622,0.02362,119190.0,119180.0,2.62984769]
[1754867199823,0.0001,119190.0,119180.0,2.62984769]
[1754867200223,0.02439,119190.0,119180.0,2.62972769]
[1754867201637,0.02439,119190.0,119180.0,2.40690568]
[1754867201832,0.02439,119190.0,119180.0,2.73595418]
[1754867202422,0.02439,119190.0,119180.0,0.79487418]
[1754867202720,0.02439,119190.0,119180.0,2.73591418]
[1754867206734,0.02439,119190.0,119180.0,2.70496176]
[1754867207335,0.02439,119190.0,119180.0,0.76392176]
[1754867207537,0.02439,119190.0,119180.0,2.70488176]
[1754867209437,0.32504237,119210.0,119180.0,2.70488176]
[1754867209438,0.01835076,119210.0,119200.0,0.0838764]
[1754867209634,0.01835076,119210.0,119200.0,1.80897841]
[1754867209635,0.04264076,119210.0,119200.0,1.80897841]
[1754867209842,0.13579076,119210.0,119200.0,1.5861564]
[1754867213142,0.18493294,119230.0,119220.0,0.0838623]
[1754867213342,0.18493294,119230.0,119220.0,0.8645023]
[1754867213343,0.11744,119230.0,119220.0,0.8645023]
[1754867213543,0.11744,119230.0,119220.0,1.2253023]
[1754867213741,0.02429,119230.0,119220.0,1.46499543]
[1754867214136,0.02429,119230.0,119220.0,1.24217342]
[1754867214336,0.12644,119230.0,119220.0,1.24217342]
[1754867215738,0.03329,119230.0,119220.0,1.24217342]
[1754867216146,0.03329,119230.0,119220.0,1.46499543]
[1754867216848,0.009,119230.0,119220.0,1.45699543]
[1754867217544,0.03329,119230.0,119220.0,1.45699543]
[1754867219146,0.009,119230.0,119220.0,1.45699543]
[1754867220148,0.009,119230.0,119220.0,1.23417342]
[1754867220348,0.009,119230.0,119220.0,1.45699543]
[1754867220646,0.03329,119230.0,119220.0,1.45699543]
[1754867221440,0.03329,119230.0,119220.0,1.23417342]
[1754867221742,0.03329,119230.0,119220.0,1.45699543]
[1754867222452,0.03329,119230.0,119220.0,2.61683543]
[1754867223550,0.03329,119230.0,119220.0,2.61675543]
[1754867223849,0.03329,119230.0,119220.0,2.60875543]
[1754867224744,0.03329,119230.0,119220.0,2.6840295]
[1754867229447,0.03329,119230.0,119220.0,2.60875543]
[1754867229649,0.03329,119230.0,119220.0,2.6840295]
[1754867229849,0.03329,119230.0,119220.0,0.7436295]
[1754867230050,0.03329,119230.0,119220.0,2.6837895]
[1754867230251,0.03329,119230.0,119220.0,2.60851543]
[1754867230451,0.03329,119230.0,119220.0,0.66835543]
[1754867230744,0.03329,119230.0,119220.0,2.60851543]
[1754867230953,0.03329,119230.0,119220.0,2.60051543]
[1754867232456,0.04241,119230.0,119220.0,2.60043543]
[1754867232659,0.12818,119230.0,119220.0,2.60043543]
[1754867234561,0.12818,119230.0,119220.0,1.44051543]
[1754867235153,0.12818,119230.0,119220.0,1.21769342]
[1754867235960,0.12818,119230.0,119220.0,0.43753342]
[1754867236161,0.12818,119230.0,119220.0,1.44047543]
[1754867237357,0.12818,119230.0,119220.0,0.66035543]
[1754867237563,0.12818,119230.0,119220.0,1.44043543]
[1754867238056,0.12818,119230.0,119220.0,1.43243543]
[1754867242668,0.12818,119230.0,119220.0,1.5077095]
[1754867243058,0.12818,119230.0,119220.0,1.43243543]
[1754867243467,0.12818,119230.0,119220.0,1.5077095]
[1754867244575,0.12818,119230.0,119220.0,1.28488749]
[1754867244776,0.12818,119230.0,119220.0,1.5077095]
[1754867244966,0.12818,119230.0,119220.0,1.28488749]
[1754867245168,0.12818,119230.0,119220.0,1.4997095]
[1754867247479,0.12818,119230.0,119220.0,1.42443543]
[1754867248877,0.12818,119230.0,119220.0,0.64435543]
[1754867249079,0.12818,119230.0,119220.0,1.42419543]
[1754867249281,0.35100201,119230.0,119220.0,1.20137342]
[1754867249470,0.35100201,119230.0,119220.0,1.27664749]
[1754867249673,0.43485731,119230.0,119220.0,0.49680749]
[1754867249872,0.43485731,119230.0,119220.0,1.27664749]
[1754867250083,0.43485731,119230.0,119220.0,1.20137342]
[1754867250975,0.90260931,119230.0,119220.0,1.14064]
[1754867251380,0.90260931,119230.0,119220.0,1.2245023]
[1754867251879,0.90260931,119230.0,119220.0,1.14064]
[1754867252082,0.90260931,119230.0,119220.0,1.2245023]
[1754867252275,0.90260931,119230.0,119220.0,1.2165023]
[1754867253483,0.12818,119230.0,119220.0,1.2164223]
[1754867253870,0.09501,119230.0,119220.0,1.2164223]
[1754867254085,0.12818,119230.0,119220.0,1.2164223]
[1754867254271,0.2120353,119230.0,119220.0,1.2164223]
[1754867254476,0.43485731,119230.0,119220.0,1.2164223]
[1754867255084,0.59860931,119230.0,119220.0,1.2164223]
[1754867255584,0.43085731,119230.0,119220.0,1.2164223]
[1754867255982,0.42685731,119230.0,119220.0,1.2164223]
[1754867261487,0.42496731,119230.0,119220.0,1.2164223]
[1754867261982,0.24711201,119230.0,119220.0,1.2164223]
[1754867262184,0.24911201,119230.0,119220.0,1.2164223]
[1754867262579,0.09718,119230.0,119220.0,1.2164223]
[1754867262784,0.12048,119230.0,119220.0,1.2164223]
[1754867263187,0.1586453,119230.0,119220.0,1.2164223]
[1754867263384,0.02537,119230.0,119220.0,1.23308365]
[1754867263688,0.42423731,119230.0,119220.0,1.23308365]
[1754867271094,0.2014153,119230.0,119220.0,1.23308365]
[1754867271293,0.42423731,119230.0,119220.0,1.23308365]
[1754867279998,0.2014153,119230.0,119220.0,1.23308365]
[1754867280301,0.42423731,119230.0,119220.0,1.23308365]
[1754867281200,0.42423731,119230.0,119220.0,0.45332365]
[1754867281404,0.42423731,119230.0,119220.0,1.23268365]
[1754867281593,0.42423731,119230.0,119220.0,0.36946135]
[1754867281799,0.78503731,119230.0,119220.0,0.87984385]
[1754867282097,0.78603731,119230.0,119220.0,0.87984385]
[1754867282301,0.78703731,119230.0,119220.0,0.87984385]
[1754867283603,0.78703731,119230.0,119220.0,0.79598135]
[1754867285202,0.95478931,119230.0,119220.0,0.79598135]
[1754867285402,0.95478931,119230.0,119220.0,0.01666135]
[1754867285605,0.1997095,119210.0,119200.0,0.9557591]
[1754867285792,0.78323151,119210.0,119200.0,0.79650843]
[1754867285992,0.78323151,119210.0,119200.0,0.88038503]
[1754867286993,0.42243151,119210.0,119200.0,0.88038503]
[1754867287199,0.78333151,119210.0,119200.0,0.88048503]
[1754867287599,0.79171512,119210.0,119200.0,0.88048503]
[1754867288197,0.79171512,119210.0,119200.0,0.88148503]
[1754867288705,0.79171512,119210.0,119200.0,0.88248503]
[1754867290402,1.01453713,119210.0,119200.0,0.79860843]
[1754867290807,0.79171512,119210.0,119200.0,0.79860843]
[1754867291202,1.01453713,119210.0,119200.0,0.79860843]
[1754867291399,0.79171512,119210.0,119200.0,0.79860843]
[1754867292907,0.95949112,119210.0,119200.0,0.79860843]
[1754867296611,0.79171512,119210.0,119200.0,0.79860843]
[1754867296911,0.79171512,119210.0,119200.0,0.01940843]
[1754867297811,1.01453713,119210.0,119200.0,0.01940843]
[1754867298314,0.0838836,119190.0,119180.0,0.1678777]
[1754867298510,0.80226928,119190.0,119180.0,0.7791]
[1754867299614,0.80226928,119190.0,119180.0,0.8659907]
[1754867299809,0.73689561,119190.0,119180.0,0.8660907]
[1754867300010,0.78344561,119190.0,119180.0,0.8660907]
[1754867300310,0.78344561,119190.0,119180.0,1.2268907]
[1754867300311,0.1078436,119190.0,119180.0,1.2268907]
[1754867300509,0.0839836,119190.0,119180.0,1.2268907]
[1754867300705,0.33066561,119190.0,119180.0,1.2298907]
[1754867301811,0.1078436,119190.0,119180.0,1.2298907]
[1754867303318,0.33066561,119190.0,119180.0,1.2298907]
[1754867303610,0.33066561,119190.0,119180.0,1.2278907]
[1754867303815,0.33066561,119190.0,119180.0,1.2258907]
[1754867304719,0.0001,119190.0,119180.0,1.2258907]
[1754867313023,0.02396,119190.0,119180.0,1.2258907]
[1754867314220,0.02396,119190.0,119180.0,1.30116477]
[1754867314815,0.02396,119190.0,119180.0,1.2258907]
[1754867315522,0.02396,119190.0,119180.0,1.30116477]
[1754867317121,0.0001,119190.0,119180.0,1.30116477]
[1754867317324,0.0001,119190.0,119180.0,1.44871271]
[1754867323028,0.02279,119210.0,119180.0,1.44871271]
[1754867323228,0.02279,119210.0,119200.0,0.4446769]
[1754867323425,0.02279,119210.0,119200.0,1.2397791]
[1754867324030,0.02279,119210.0,119200.0,1.31505317]
[1754867324231,0.02289,119210.0,119200.0,1.31515317]
[1754867324531,0.02489,119210.0,119200.0,1.31515317]
[1754867324725,0.02489,119210.0,119200.0,1.67595317]
[1754867324928,0.02589,119210.0,119200.0,1.67595317]
[1754867325438,0.02389,119210.0,119200.0,1.67595317]
[1754867325642,0.02389,119210.0,119200.0,1.67695317]
[1754867326233,0.02389,119210.0,119200.0,1.89977518]
[1754867326634,0.02289,119210.0,119200.0,1.90077518]
[1754867327131,0.02289,119210.0,119200.0,1.74576502]
[1754867329835,0.02289,119210.0,119200.0,1.67049095]
[1754867334240,0.27381845,119210.0,119200.0,1.9214194]
[1754867336851,0.27381845,119210.0,119200.0,1.67049095]
[1754867337038,0.27381845,119210.0,119200.0,1.9214194]
[1754867340144,0.32150845,119210.0,119200.0,1.9214194]
[1754867340342,0.36837845,119210.0,119200.0,1.9214194]
[1754867340542,0.36837845,119210.0,119200.0,1.67049095]
[1754867340742,0.36837845,119210.0,119200.0,1.9214194]
[1754867341237,0.32150845,119210.0,119200.0,1.9214194]
[1754867341448,0.11745,119210.0,119200.0,1.9214194]
[1754867341636,0.36837845,119210.0,119200.0,1.9214194]
[1754867342942,0.32150845,119210.0,119200.0,1.67049095]
[1754867343147,0.36837845,119210.0,119200.0,1.67049095]
[1754867343359,0.45224785,119210.0,119200.0,1.67049095]
[1754867343740,0.45224725,119210.0,119200.0,1.6026791]
[1754867344645,0.45224725,119210.0,119200.0,1.6016791]
[1754867344950,0.45224725,119210.0,119200.0,0.7954822]
[1754867345154,0.45324725,119210.0,119200.0,0.8783583]
[1754867345748,0.81404725,119210.0,119200.0,0.8783583]
[1754867346149,1.0649757,119210.0,119200.0,0.7777]
[1754867346444,1.2317517,119210.0,119200.0,0.7777]
[1754867346651,1.5337517,119210.0,119200.0,0.77762]
[1754867347038,1.5336517,119210.0,119200.0,0.71762]
[1754867347240,0.1319861,119200.0,119190.0,1.029169]
[1754867347447,0.703953,119200.0,119190.0,0.945286]
[1754867347646,0.72294124,119200.0,119190.0,0.945286]
[1754867348144,0.66746774,119200.0,119190.0,0.945286]
[1754867348345,0.66956774,119200.0,119190.0,0.945386]
[1754867348850,0.66956774,119200.0,119190.0,0.77762]
[1754867349150,0.83835974,119200.0,119190.0,0.77762]
[1754867349645,1.19915974,119200.0,119190.0,0.0001]
[1754867350041,0.1319931,119190.0,119180.0,0.77758]
[1754867350245,0.7860948,119190.0,119180.0,0.77758]
[1754867350444,0.9539028,119190.0,119180.0,0.77758]
[1754867350645,0.7307111,119190.0,119180.0,0.77758]
[1754867350847,0.9539028,119190.0,119180.0,0.8614702]
[1754867351045,0.9539028,119190.0,119180.0,0.77758]
[1754867351246,0.9540028,119190.0,119180.0,0.77768]
[1754867351447,0.9550028,119190.0,119180.0,0.77768]
[1754867351649,0.9550028,119190.0,119180.0,0.0002]
[1754867352146,1.2550028,119190.0,119180.0,0.0002]
[1754867352349,0.3320319,119180.0,119170.0,0.77744]
[1754867352548,0.97223518,119180.0,119170.0,0.77744]
[1754867352845,0.91686748,119180.0,119170.0,0.8613372]
[1754867353053,1.14005918,119180.0,119170.0,0.8613372]
[1754867353351,1.14005918,119180.0,119170.0,0.77744]
[1754867353550,1.14015918,119180.0,119170.0,0.77754]
[1754867353753,1.14015918,119180.0,119170.0,0.8614372]
[1754867353949,1.14015918,119180.0,119170.0,0.77854]
[1754867354149,1.14015918,119180.0,119170.0,0.77954]
[1754867354448,1.14015918,119180.0,119170.0,0.0021]
[1754867358256,1.91759918,119180.0,119170.0,0.0021]
[1754867358455,1.91759918,119180.0,119170.0,0.0859974]
[1754867358653,1.91759918,119180.0,119170.0,0.0021]
[1754867359855,1.14015918,119180.0,119170.0,0.0021]
[1754867360558,1.14015918,119180.0,119170.0,0.0859974]
[1754867361056,1.14015918,119180.0,119170.0,0.1169174]
[1754867361451,1.14015918,119180.0,119170.0,0.1549274]
[1754867363562,0.91696748,119180.0,119170.0,0.1549274]
[1754867363861,1.14015918,119180.0,119170.0,0.1549274]
[1754867365757,0.97233518,119180.0,119170.0,0.1549274]
[1754867366058,0.97233518,119180.0,119170.0,0.1323074]
[1754867368658,0.61153518,119180.0,119170.0,0.1549274]
[1754867370457,0.44374358,119180.0,119170.0,0.5370674]
[1754867371269,0.22055188,119180.0,119170.0,0.5370674]
[1754867371462,0.44374358,119180.0,119170.0,0.5370674]
[1754867371657,0.35985328,119180.0,119170.0,0.5370674]
[1754867371857,0.44374358,119180.0,119170.0,0.5370674]
[1754867373567,0.26486328,119180.0,119170.0,0.5370674]
[1754867374061,0.26586328,119180.0,119170.0,0.5360674]
[1754867374265,0.26586328,119180.0,119170.0,0.5350674]
[1754867374666,0.04267158,119180.0,119170.0,0.5350674]
[1754867374865,0.37374358,119180.0,119170.0,0.5350674]
[1754867375063,0.15055188,119180.0,119170.0,0.5350674]
[1754867375369,0.11544158,119180.0,119170.0,0.5350674]
[1754867375566,0.42252358,119180.0,119170.0,0.5350674]
[1754867376067,0.44474358,119180.0,119170.0,0.5350674]
[1754867382669,0.22155188,119180.0,119170.0,0.5350674]
[1754867382870,0.44474358,119180.0,119170.0,0.5350674]
[1754867384277,0.36085328,119180.0,119170.0,0.5350674]
[1754867384479,0.44474358,119180.0,119170.0,0.5350674]
[1754867385877,0.36085328,119180.0,119170.0,0.5350674]
[1754867386565,0.01944158,119180.0,119170.0,0.5350674]
[1754867386770,0.00208234,119180.0,119170.0,0.7028914]
[1754867386971,0.04397824,119200.0,119190.0,0.1710933]
[1754867387173,0.04397824,119200.0,119190.0,1.3088933]
[1754867387378,0.05384824,119200.0,119190.0,1.3088933]
[1754867387579,0.10123824,119200.0,119190.0,1.3088933]
[1754867387974,0.33948994,119200.0,119190.0,1.3088933]
[1754867388170,0.05394824,119200.0,119190.0,1.3089933]
[1754867388377,0.01908824,119200.0,119190.0,1.3089933]
[1754867389080,0.01908824,119200.0,119190.0,1.6697933]
[1754867389585,0.04407824,119200.0,119190.0,1.6697933]
[1754867390982,0.04407824,119200.0,119190.0,1.6707933]
[1754867393377,0.26726994,119200.0,119190.0,1.6707933]
[1754867393585,0.36123994,119200.0,119190.0,1.6707933]